fUST/lending_fUST_20240607
["ID","MTS","AMOUNT","RATE_DAILY","PERIOD"]
[328751311,1717765847355,-499.32114645,0.00024998,2]
[328751313,1717765847364,-169.48088589,0.00024998,2]
[328751315,1717765847374,-155.28801637,0.00024998,2]
[328751317,1717765847383,-155.29503239,0.00024998,2]
[328751319,1717765847392,-220.28301175,0.00024998,2]
[328751321,1717765847402,-155.14593022,0.00024998,7]
[328751323,1717765847412,-1219.77971889,0.00024998,2]
[328751326,1717765847421,-268.07491721,0.00024998,2]
[328751328,1717765847432,-156.76771051,0.00024998,2]
[328751330,1717765847442,-155.29725938,0.00024998,2]
[328751332,1717765847451,-371.33795435,0.00024998,2]
[328751334,1717765847461,-1500.61628881,0.00024998,2]
[328751336,1717765847470,-274.87047034,0.00024998,2]
[328751338,1717765847480,-461.64688121,0.00024998,2]
[328751340,1717765847490,-173.19129782,0.00024998,2]
[328751342,1717765847500,-4791.77688259,0.00025,7]
[328751344,1717765847510,-42593.78673087,0.00025,7]
[328751346,1717765847519,-300.0,0.00025,2]
[328751348,1717765847528,-300.0,0.00025,2]
[328751350,1717765847537,-300.0,0.00025,2]
[328751352,1717765847547,-300.0,0.00025,2]
[328751354,1717765847556,-300.0,0.00025,2]
[328751356,1717765847565,-300.0,0.00025,2]
[328751358,1717765847574,-300.0,0.00025,2]
[328751360,1717765847584,-300.0,0.00025,2]
[328751362,1717765847593,-300.0,0.00025,2]
[328751364,1717765847602,-300.0,0.00025,2]
[328751366,1717765847611,-300.0,0.00025,2]
[328751368,1717765847622,-300.0,0.00025,2]
[328751370,1717765847632,-427.399999,0.00025,2]
[328751372,1717765847641,-270.0,0.00025,2]
[328751374,1717765847650,-160.0,0.00025,2]
[328751376,1717765847659,-5000.0,0.00025,14]
[328751378,1717765847669,-296.4873533,0.00025,2]
[328751380,1717765847679,-706.0,0.00025,2]
[328751382,1717765847690,-160.0,0.00025,2]
[328751384,1717765847699,-69741.0,0.00025,2]
[328751386,1717765847708,-7369.57739568,0.00025,2]
[328751388,1717765847718,-401.95220466,0.00025,2]
[328751390,1717765847728,-4107.91279526,0.00025,10]
[328751392,1717765847737,-155.03304171,0.00025,2]
[328751394,1717765847746,-152.0,0.00025,10]
[328751396,1717765847756,-427.4,0.00025,2]
[328751398,1717765847765,-95022.97314432,0.00025,2]
[328751401,1717765847780,-3812.67790999,0.00025,2]
[328752625,1717766638097,2183.34115667,0.0001,2]
[328752795,1717767032297,-154.9690062,0.00018899,2]
[328752796,1717767032307,-187.33622139,0.000189,2]
[328752797,1717767032318,-2409.63345823,0.00019997,2]
[328752798,1717767032329,-281.19763205,0.0002,2]
[328752799,1717767032339,-10895.7018361,0.00021751,2]
[328752800,1717767032349,-672.30934228,0.00022709,2]
[328752801,1717767032359,-24113.03054781,0.00022898,2]
[328752839,1717767038239,-489.96072501,0.00019996,2]
[328752911,1717767042665,-712.91815986,0.00019996,2]
[328752913,1717767042679,-1521.75838762,0.00019996,2]
[328752915,1717767042692,-5191.38795817,0.00019996,2]
[328752917,1717767042703,-5364.35315289,0.00022898,2]
[328753096,1717767044200,-6930.1057669,0.00022898,2]
[328753099,1717767044210,-702.69820913,0.00023744,2]
[328753102,1717767044220,-622.61546711,0.00023844,2]
[328753105,1717767044232,-187.33622139,0.000239,2]
[328753108,1717767044242,-702.69820909,0.00024195,2]
[328753111,1717767044251,-537.5735091,0.00024347,2]
[328753114,1717767044261,-166.666666,0.00024493,2]
[328753117,1717767044271,-410.2238068,0.00024548,2]
[328753120,1717767044280,-702.69820909,0.00024646,2]
[328753123,1717767044291,-2193.42687557,0.0002483,2]
[328753126,1717767044300,-202.49924576,0.00024859,2]
[328753129,1717767044310,-479.68061974,0.00024859,2]
[328753131,1717767044319,-500.0,0.00024859,2]
[328753133,1717767044329,-410.95073687,0.00024859,2]
[328753135,1717767044338,-342.4898097,0.00024859,2]
[328753137,1717767044348,-500.0,0.00024859,2]
[328753139,1717767044357,-500.0,0.00024859,2]
[328753141,1717767044367,-500.0,0.00024859,2]
[328753143,1717767044376,-500.0,0.00024859,2]
[328753145,1717767044386,-500.0,0.00024859,2]
[328753147,1717767044395,-500.0,0.00024859,2]
[328753149,1717767044405,-500.0,0.00024859,2]
[328753151,1717767044414,-344.24886803,0.00024859,2]
[328753153,1717767044424,-500.0,0.00024859,2]
[328753155,1717767044433,-500.0,0.00024859,2]
[328753157,1717767044443,-500.0,0.00024859,2]
[328753159,1717767044452,-394.57424989,0.00024859,2]
[328753161,1717767044461,-500.0,0.00024859,2]
[328753163,1717767044471,-500.0,0.00024859,2]
[328753164,1717767044484,-500.0,0.00024859,2]
[328753166,1717767044495,-449.35352982,0.00024859,2]
[328753743,1717767876729,154.9690062,9.999e-05,2]
[328753772,1717768232978,-154.9690062,0.00018898,2]
[328753773,1717768232989,-190.4326803,0.00018899,2]
[328753774,1717768233008,-256.44366822,0.000189,2]
[328753775,1717768233019,-234.54027642,0.0002,2]
[328753776,1717768233030,-281.19763205,0.0002,2]
[328753777,1717768233040,-166.808299,0.00021918,2]
[328753778,1717768233053,-24900.0,0.00021967,2]
[328753779,1717768233063,-2313.7721952,0.00022484,2]
[328753780,1717768233073,-499.0,0.00023059,2]
[328753781,1717768233083,-439.18638069,0.0002369,2]
[328753782,1717768233094,-709.78195393,0.0002379,3]
[328753816,1717768238539,-281.19763205,0.0002,2]
[328753818,1717768238550,-339.84736684,0.00022827,2]
[328753846,1717768238823,-894.27508706,0.00022827,2]
[328753848,1717768238834,-205.57740846,0.00023799,2]
[328753849,1717768238844,-500.0,0.00023799,2]
[328753852,1717768238854,-176.12174437,0.00023799,2]
[328753854,1717768238864,-500.0,0.00023799,2]
[328753855,1717768238874,-203.27466041,0.00023799,2]
[328753857,1717768238883,-500.0,0.00023799,2]
[328753860,1717768238893,-500.0,0.00023799,2]
[328753863,1717768238903,-500.0,0.00023799,2]
[328753864,1717768238913,-303.8248041,0.00023799,2]
[328753866,1717768238923,-500.0,0.00023799,2]
[328753869,1717768238933,-500.0,0.00023799,2]
[328753871,1717768238943,-500.0,0.00023799,2]
[328753873,1717768238952,-500.0,0.00023799,2]
[328753875,1717768238963,-2508.45032093,0.000238,7]
[328753877,1717768238972,-4651.69904348,0.000238,2]
[328753879,1717768238985,-1938.48871053,0.000238,2]
[328753881,1717768239002,-2147.73455586,0.000238,2]
[328753883,1717768239014,-565.90470413,0.000238,2]
[328754049,1717768243228,-182.33,0.0002379,3]
[328754057,1717768243239,-2640.07981283,0.000238,2]
[328754064,1717768243251,-311.20545213,0.000238,2]
[328755836,1717768262999,309.81411154,9.999e-05,2]
[328755838,1717768264032,156.53485977,9.999e-05,2]
[328755839,1717768265203,927.1117103,9.999e-05,2]
[328755840,1717768267683,1828.60767691,9.999e-05,2]
[328755841,1717768315624,252.32412823,9.999e-05,2]
[328755842,1717768318741,154.9690062,9.999e-05,2]
[328755843,1717768320181,659.74061808,9.999e-05,2]
[328755844,1717768322439,923.79132463,0.00014,2]
[328755845,1717768322506,195.02314914,9.999e-05,2]
[328755846,1717768333868,154.9690062,9.999e-05,2]
[328755847,1717768380997,1155.40031062,9.999e-05,2]
[328755848,1717768381040,157.66978397,9.999e-05,2]
[328755849,1717768382120,1281.50835311,9.999e-05,2]
[328755850,1717768383664,154.9690062,9.999e-05,2]
[328755851,1717768385894,284.4592241,0.000137,2]
[328755852,1717768389512,154.9690062,9.999e-05,2]
[328755853,1717768391606,1342.59061452,9.999e-05,2]
[328755854,1717768392477,317.3700773,9.999e-05,2]
[328755855,1717768394167,552.23614437,9.999e-05,2]
[328755856,1717768396641,692.26255018,9.999e-05,2]
[328755857,1717768423915,524.19655516,9.999e-05,2]
[328755858,1717768425822,154.9690062,9.999e-05,2]
[328755859,1717768428951,185.30449836,9.999e-05,2]
[328755860,1717768430340,187.30405388,9.999e-05,2]
[328755861,1717768432220,154.9690062,9.999e-05,2]
[328755862,1717768438492,154.9690062,9.999e-05,2]
[328755863,1717768439399,154.9690062,9.999e-05,2]
[328755864,1717768439452,158.99250424,9.999e-05,2]
[328755865,1717768446608,181.94756605,9.999e-05,2]
[328755866,1717768450056,208.30314043,9.999e-05,2]
[328755867,1717768457499,530.04771568,9.999e-05,2]
[328755869,1717768773400,44585.33278239,0.00017911,7]
[328755870,1717768898404,-190.4326803,0.000156,2]
[328755871,1717768898428,-884.8673197,0.00015891,2]
[328755872,1717768902343,154.9690062,9.999e-05,2]
[328755873,1717768991028,252.32412823,9.999e-05,2]
[328755874,1717769037691,154.9690062,9.999e-05,2]
[328755875,1717769076616,530.04771568,9.999e-05,2]
[328755876,1717769077540,1281.50835311,9.999e-05,2]
[328755877,1717769078138,157.66978397,9.999e-05,2]
[328755878,1717769109171,158.99250424,9.999e-05,2]
[328755879,1717769145744,208.30314043,9.999e-05,2]
[328755880,1717769186121,164.57151092,9.999e-05,2]
[328755881,1717769247258,955.7942599,0.00013654,2]
[328755882,1717769256499,24900.0,0.00013657,2]
[328755883,1717769301562,156.91563212,9.999e-05,2]
[328755888,1717769324996,1441.62192764,9.999e-05,2]
[328755895,1717769363886,154.9690062,9.999e-05,2]
[328755900,1717769371571,339.5186641,0.00013699,2]
[328755906,1717769414578,284.4592241,0.000137,2]
[328755984,1717769433378,-1849.23297801,0.00014517,2]
[328755987,1717769433391,-6066.79225265,0.00014517,2]
[328755989,1717769433402,-3070.8095879,0.00014518,2]
[328755991,1717769433411,-283.90786721,0.00014518,2]
[328755993,1717769433422,-10538.00320845,0.00014519,2]
[328755995,1717769433431,-2641.73909648,0.0001452,2]
[328755997,1717769433440,-19301.54694971,0.0001452,2]
[328755999,1717769433450,-1910.49735366,0.00014521,2]
[328756001,1717769433459,-1982.90053047,0.00014521,2]
[328756003,1717769433468,-1294.05259618,0.00014523,2]
[328756005,1717769433478,-234.63104932,0.00014618,2]
[328756006,1717769433487,-156.76406228,0.00014623,2]
[328756008,1717769433496,-18107.33068451,0.00014738,2]
[328756010,1717769433506,-215.631394,0.0001474,2]
[328756012,1717769433516,-2409.63345823,0.00015,2]
[328756014,1717769433525,-1694.3830749,0.00015593,2]
[328756016,1717769433535,-1294.05259617,0.00016291,2]
[328756018,1717769433544,-7106.74671056,0.00017898,2]
[328756021,1717769433556,-279.80017026,0.00017898,2]
[328756096,1717769439159,-3097.41774154,0.00017898,2]
[328756097,1717769439169,-275.50564015,0.00017907,2]
[328756098,1717769439179,-119.56114514,0.00017909,2]
[328756099,1717769439191,-190.58171012,0.00017909,2]
[328756100,1717769439202,-187.64362554,0.00017909,2]
[328756101,1717769439212,-154.9690062,0.00017909,2]
[328756102,1717769439222,-618.0112209,0.00017909,2]
[328756103,1717769439232,-530.39887806,0.00017909,2]
[328756104,1717769439242,-306.89424499,0.00017909,2]
[328756105,1717769439252,-6.77219243,0.00017909,2]
[328756111,1717769443191,-210.68521235,0.00017909,2]
[328756113,1717769443200,-292.23449092,0.00017909,2]
[328756114,1717769443210,-190.41526496,0.0001791,2]
[328756115,1717769443220,-2763.22163269,0.00018,2]
[328756116,1717769443231,-1294.05259617,0.00018059,2]
[328756117,1717769443241,-562.3,0.00018648,3]
[328756118,1717769443363,-229.0,0.00018648,3]
[328756119,1717769443374,-747.18586733,0.000189,2]
[328756120,1717769443384,-163.02245069,0.00019,2]
[328756121,1717769443395,-562.3,0.00019025,3]
[328756122,1717769443405,-229.0,0.00019025,3]
[328756123,1717769443415,-562.3,0.00019403,3]
[328756124,1717769443425,-229.0,0.00019403,3]
[328756125,1717769443439,-562.3,0.0001978,3]
[328756126,1717769443449,-229.0,0.0001978,3]
[328756127,1717769443459,-1294.05259617,0.00019827,2]
[328756129,1717769443469,-913.57967013,0.00019894,2]
[328756131,1717769443479,-460.86,0.00019984,3]
[328756132,1717769443489,-230.43,0.00019984,3]
[328756133,1717769443499,-691.33,0.00019984,3]
[328756134,1717769443508,-500.0,0.00019992,2]
[328756135,1717769443518,-367.69280968,0.00019992,2]
[328756136,1717769443528,-500.0,0.00019992,2]
[328756138,1717769443538,-539.59512825,0.00019992,2]
[328756140,1717769443548,-544.17862035,0.00019992,2]
[328756141,1717769443559,-500.0,0.00019992,2]
[328756143,1717769443569,-226.96492108,0.00019992,2]
[328756144,1717769443579,-447.90489724,0.00019992,2]
[328756146,1717769443590,-544.17862035,0.00019992,2]
[328756148,1717769443601,-500.0,0.00019992,2]
[328756149,1717769443611,-514.27631343,0.00019992,2]
[328756151,1717769443620,-365.70317971,0.00019992,2]
[328756153,1717769443633,-178.47544064,0.00019992,2]
[328756155,1717769443643,-500.0,0.00019992,2]
[328756156,1717769443652,-544.17862035,0.00019992,2]
[328756158,1717769443662,-500.0,0.00019992,2]
[328756160,1717769443672,-544.17862035,0.00019992,2]
[328756161,1717769443682,-500.0,0.00019992,2]
[328756163,1717769443692,-544.17862035,0.00019992,2]
[328756165,1717769443701,-500.0,0.00019992,2]
[328756166,1717769443711,-500.0,0.00019992,2]
[328756169,1717769443720,-544.17862035,0.00019992,2]
[328756171,1717769443730,-544.17862035,0.00019992,2]
[328756174,1717769443740,-544.17862035,0.00019992,2]
[328756178,1717769443750,-500.0,0.00019992,2]
[328756181,1717769443760,-544.17862035,0.00019992,2]
[328756184,1717769443769,-500.0,0.00019992,2]
[328756187,1717769443779,-544.17862035,0.00019992,2]
[328756189,1717769443788,-500.0,0.00019992,2]
[328756191,1717769443798,-544.17862035,0.00019992,2]
[328756194,1717769443809,-544.17862035,0.00019992,2]
[328756196,1717769443819,-500.0,0.00019992,2]
[328756198,1717769443828,-544.17862035,0.00019992,2]
[328756200,1717769443839,-544.17862035,0.00019992,2]
[328756201,1717769443850,-544.17862035,0.00019992,2]
[328756203,1717769443860,-544.17862035,0.00019992,2]
[328756206,1717769443870,-544.17862035,0.00019992,2]
[328756208,1717769443879,-544.17862035,0.00019992,2]
[328756210,1717769443889,-544.17862035,0.00019992,2]
[328756212,1717769443899,-544.17862035,0.00019992,2]
[328756214,1717769443908,-544.17862035,0.00019992,2]
[328756215,1717769443919,-544.17862035,0.00019992,2]
[328756218,1717769443929,-544.17862035,0.00019992,2]
[328756219,1717769443940,-544.17862035,0.00019992,2]
[328756222,1717769443949,-544.17862035,0.00019992,2]
[328756224,1717769443959,-544.17862035,0.00019992,2]
[328756226,1717769443968,-22292.6663912,0.00019999,7]
[328756228,1717769443978,-31199.93632316,0.0002,7]
[328756296,1717769444623,-5326.25279226,0.0002,7]
[328758557,1717769540645,515.43295454,9.999e-05,2]
[328758559,1717769609223,2120.4704466,9.999e-05,2]
[328758612,1717770633715,-1910.49735366,0.00018414,2]
[328758613,1717770633725,-11093.31738993,0.00018415,2]
[328758614,1717770633735,-1982.90053047,0.00018416,2]
[328758615,1717770633750,-2641.73909648,0.00018417,2]
[328758616,1717770633760,-17995.4315008,0.00018419,2]
[328758617,1717770633769,-152.6,0.00018618,3]
[328758618,1717770633780,-834.876118,0.000188,2]
[328758619,1717770633790,-498.12391155,0.000189,2]
[328758620,1717770633801,-152.6,0.00018998,3]
[328758621,1717770633810,-166.623638,0.00019178,2]
[328758622,1717770633823,-199.0136164,0.00019178,2]
[328758623,1717770633834,-152.6,0.00019378,3]
[328758624,1717770633844,-4236.94913646,0.00019623,2]
[328758625,1717770633854,-152.6,0.00019758,3]
[328758626,1717770633864,-803.35185511,0.00019889,2]
[328758627,1717770633874,-834.87611798,0.00019957,2]
[328758628,1717770633884,-508.65,0.00019978,3]
[328758629,1717770633894,-339.09,0.00019979,3]
[328758630,1717770633903,-169.55,0.00019979,3]
[328758631,1717770633913,-2391.21348589,0.00019984,2]
[328758658,1717770639611,-10078.36423121,0.00019984,2]
[328758660,1717770639622,-300.0,0.00019987,2]
[328758662,1717770639632,-666.409074,0.00019988,2]
[328758664,1717770639643,-719.959322,0.00019988,2]
[328758666,1717770639653,-666.409074,0.00019988,2]
[328758668,1717770639664,-719.959322,0.00019988,2]
[328758669,1717770639673,-151.0,0.00019988,2]
[328758671,1717770639683,-151.0,0.00019988,2]
[328758672,1717770639694,-151.0,0.00019988,2]
[328758673,1717770639704,-151.369988,0.00019988,2]
[328758674,1717770639714,-1186.566552,0.00019988,2]
[328758675,1717770639726,-151.369988,0.00019988,2]
[328758676,1717770639737,-221.59231032,0.00019988,2]
[328758677,1717770639751,-499.69947325,0.00019988,2]
[328758678,1717770639761,-321.59720963,0.00019988,2]
[328758679,1717770639771,-408.59895728,0.00019988,2]
[328758680,1717770639781,-627.06349699,0.00019988,2]
[328758681,1717770639791,-500.0,0.00019988,2]
[328758682,1717770639800,-534.46946349,0.00019988,2]
[328758683,1717770639810,-534.46946349,0.00019988,2]
[328758684,1717770639821,-452.79316077,0.00019988,2]
[328758685,1717770639834,-534.46946349,0.00019988,2]
[328758686,1717770639845,-500.0,0.00019988,2]
[328758687,1717770639855,-534.46946349,0.00019988,2]
[328758688,1717770639865,-500.0,0.00019988,2]
[328758689,1717770639874,-534.46946349,0.00019988,2]
[328758690,1717770639885,-534.46946349,0.00019988,2]
[328758691,1717770639895,-500.0,0.00019988,2]
[328758692,1717770639905,-534.46946349,0.00019988,2]
[328758693,1717770639915,-500.0,0.00019988,2]
[328758694,1717770639925,-534.46946349,0.00019988,2]
[328758695,1717770639935,-500.0,0.00019988,2]
[328758696,1717770639945,-534.46946349,0.00019988,2]
[328758697,1717770639956,-534.46946349,0.00019988,2]
[328758698,1717770639967,-534.46946349,0.00019988,2]
[328758699,1717770639978,-534.46946349,0.00019988,2]
[328758700,1717770639988,-534.46946349,0.00019988,2]
[328758701,1717770639999,-534.46946349,0.00019988,2]
[328758702,1717770640009,-534.46946349,0.00019988,2]
[328758703,1717770640019,-534.46946349,0.00019988,2]
[328758704,1717770640029,-534.46946349,0.00019988,2]
[328758705,1717770640039,-534.46946349,0.00019988,2]
[328758706,1717770640049,-534.46946349,0.00019988,2]
[328758707,1717770640059,-534.46946349,0.00019988,2]
[328758708,1717770640068,-534.46946349,0.00019988,2]
[328758709,1717770640079,-534.46946349,0.00019988,2]
[328758710,1717770640089,-534.46946349,0.00019988,2]
[328758711,1717770640100,-534.46946349,0.00019988,2]
[328758712,1717770640111,-534.46946349,0.00019988,2]
[328758713,1717770640121,-534.46946349,0.00019988,2]
[328758714,1717770640132,-534.46946349,0.00019988,2]
[328758715,1717770640142,-534.46946349,0.00019988,2]
[328758716,1717770640152,-534.46946349,0.00019988,2]
[328758717,1717770640163,-534.46946349,0.00019988,2]
[328758718,1717770640173,-534.46946349,0.00019988,2]
[328758719,1717770640183,-523.78007422,0.00019988,2]
[328758720,1717770640193,-523.78007422,0.00019988,2]
[328758721,1717770640203,-523.78007422,0.00019988,2]
[328758722,1717770640213,-523.78007422,0.00019988,2]
[328758723,1717770640226,-523.78007422,0.00019988,2]
[328758724,1717770640236,-523.78007422,0.00019988,2]
[328758725,1717770640246,-523.78007422,0.00019988,2]
[328758726,1717770640256,-523.78007422,0.00019988,2]
[328758727,1717770640267,-523.78007422,0.00019988,2]
[328758728,1717770640277,-523.78007422,0.00019988,2]
[328758729,1717770640287,-523.78007422,0.00019988,2]
[328758730,1717770640298,-523.78007422,0.00019988,2]
[328758731,1717770640308,-523.78007422,0.00019988,2]
[328758732,1717770640318,-523.78007422,0.00019988,2]
[328758733,1717770640329,-523.78007422,0.00019988,2]
[328758734,1717770640339,-523.78007422,0.00019988,2]
[328758735,1717770640348,-523.78007422,0.00019988,2]
[328758736,1717770640358,-523.78007422,0.00019988,2]
[328758737,1717770640369,-523.78007422,0.00019988,2]
[328758738,1717770640380,-523.78007422,0.00019988,2]
[328758739,1717770640390,-523.78007422,0.00019988,2]
[328758740,1717770640400,-523.78007422,0.00019988,2]
[328758741,1717770640410,-523.78007422,0.00019988,2]
[328758742,1717770640420,-523.78007422,0.00019988,2]
[328758743,1717770640431,-532.50974212,0.00019988,2]
[328758744,1717770640440,-532.50974212,0.00019988,2]
[328758745,1717770640450,-532.50974212,0.00019988,2]
[328758746,1717770640461,-532.50974212,0.00019988,2]
[328758747,1717770640474,-532.50974212,0.00019988,2]
[328758748,1717770640484,-532.50974212,0.00019988,2]
[328758749,1717770640495,-532.50974212,0.00019988,2]
[328758750,1717770640505,-532.50974212,0.00019988,2]
[328758751,1717770640515,-532.50974212,0.00019988,2]
[328758752,1717770640524,-532.50974212,0.00019988,2]
[328758753,1717770640534,-532.50974212,0.00019988,2]
[328758754,1717770640544,-532.50974212,0.00019988,2]
[328758755,1717770640554,-151.0,0.00019989,2]
[328758756,1717770640564,-151.0,0.00019989,2]
[328758757,1717770640575,-154.287729,0.00019989,2]
[328758758,1717770640585,-1856.822161,0.00019989,2]
[328758759,1717770640595,-216.13115174,0.00019989,2]
[328758760,1717770640606,-1856.822161,0.00019989,2]
[328758761,1717770640616,-1856.822161,0.00019989,2]
[328758762,1717770640626,-1856.822161,0.00019989,2]
[328758763,1717770640636,-151.0,0.00019989,2]
[328758764,1717770640646,-151.0,0.00019989,2]
[328758765,1717770640656,-224.171569,0.00019989,2]
[328758766,1717770640666,-3394.50804,0.00019989,2]
[328758767,1717770640676,-3394.50804,0.00019989,2]
[328758768,1717770640686,-812.247524,0.00019989,2]
[328758769,1717770640697,-812.247524,0.00019989,2]
[328758770,1717770640706,-3394.50804,0.00019989,2]
[328758771,1717770640718,-3394.50804,0.00019989,2]
[328758772,1717770640728,-812.247524,0.00019989,2]
[328758773,1717770640739,-812.247524,0.00019989,2]
[328758774,1717770640749,-666.409074,0.00019989,2]
[328758775,1717770640762,-719.959322,0.00019989,2]
[328758776,1717770640772,-666.409074,0.00019989,2]
[328758777,1717770640782,-719.959322,0.00019989,2]
[328758778,1717770640794,-151.0,0.00019989,2]
[328758779,1717770640804,-151.0,0.00019989,2]
[328758780,1717770640814,-151.0,0.00019989,2]
[328758781,1717770640824,-151.369988,0.00019989,2]
[328758782,1717770640836,-151.369988,0.00019989,2]
[328758783,1717770640846,-151.369988,0.00019989,2]
[328758784,1717770640856,-1186.566552,0.00019989,2]
[328758785,1717770640866,-1186.566552,0.00019989,2]
[328758786,1717770640876,-23235.01361808,0.00019989,2]
[328758787,1717770640886,-11146.3331956,0.0001999,7]
[328758788,1717770640896,-151.625702,0.0001999,2]
[328758789,1717770640905,-151.0,0.0001999,2]
[328758790,1717770640915,-164.722608,0.0001999,2]
[328758791,1717770640925,-226.379158,0.0001999,2]
[328758792,1717770640934,-226.379158,0.0001999,2]
[328758793,1717770640944,-226.379158,0.0001999,2]
[328758794,1717770640953,-226.379158,0.0001999,2]
[328758795,1717770640963,-170.490533,0.0001999,2]
[328758796,1717770640974,-170.490533,0.0001999,2]
[328758797,1717770640984,-1739.324633,0.0001999,2]
[328758798,1717770641096,-1739.324633,0.0001999,2]
[328758799,1717770641111,-1739.324633,0.0001999,2]
[328758800,1717770641121,-1739.324633,0.0001999,2]
[328758801,1717770641131,-170.490533,0.0001999,2]
[328758802,1717770641141,-170.490533,0.0001999,2]
[328758803,1717770641150,-151.0,0.0001999,2]
[328758804,1717770641159,-151.0,0.0001999,2]
[328758805,1717770641169,-151.0,0.0001999,2]
[328758806,1717770641179,-998.298469,0.0001999,2]
[328758807,1717770641188,-998.298469,0.0001999,2]
[328758808,1717770641197,-998.298469,0.0001999,2]
[328758809,1717770641207,-998.298469,0.0001999,2]
[328758810,1717770641216,-1464.558736,0.0001999,2]
[328758811,1717770641227,-1464.558736,0.0001999,2]
[328758812,1717770641236,-1464.558736,0.0001999,2]
[328758813,1717770641246,-151.0,0.0001999,2]
[328758814,1717770641256,-151.0,0.0001999,2]
[328758815,1717770641265,-151.0,0.0001999,2]
[328758816,1717770641275,-699.79673124,0.0001999,2]
[328758817,1717770641290,-764.76200476,0.0001999,2]
[328758818,1717770641300,-1464.558736,0.0001999,2]
[328758819,1717770641309,-1464.558736,0.0001999,2]
[328758820,1717770641319,-151.0,0.0001999,2]
[328758821,1717770641328,-1856.822161,0.0001999,2]
[328758822,1717770641338,-1856.822161,0.0001999,2]
[328758823,1717770641349,-151.0,0.0001999,2]
[328758824,1717770641358,-151.0,0.0001999,2]
[328758825,1717770641368,-3394.50804,0.0001999,2]
[328758826,1717770641377,-3394.50804,0.0001999,2]
[328758827,1717770641387,-812.247524,0.0001999,2]
[328758828,1717770641396,-812.247524,0.0001999,2]
[328758829,1717770641406,-3394.50804,0.0001999,2]
[328758830,1717770641416,-3394.50804,0.0001999,2]
[328758831,1717770641425,-812.247524,0.0001999,2]
[328758832,1717770641435,-812.247524,0.0001999,2]
[328758833,1717770641445,-666.409074,0.0001999,2]
[328758834,1717770641454,-666.409074,0.0001999,2]
[328758835,1717770641464,-666.409074,0.0001999,2]
[328758836,1717770641475,-719.959322,0.0001999,2]
[328758837,1717770641485,-666.409074,0.0001999,2]
[328758838,1717770641495,-719.959322,0.0001999,2]
[328758839,1717770641505,-719.959322,0.0001999,2]
[328758840,1717770641515,-719.959322,0.0001999,2]
[328758841,1717770641524,-151.0,0.0001999,2]
[328758842,1717770641534,-151.0,0.0001999,2]
[328758843,1717770641544,-151.0,0.0001999,2]
[328758844,1717770641554,-211.050413,0.0001999,2]
[328758845,1717770641563,-151.0,0.0001999,2]
[328758846,1717770641574,-151.369988,0.0001999,2]
[328758847,1717770641583,-151.369988,0.0001999,2]
[328758848,1717770641593,-151.369988,0.0001999,2]
[328758849,1717770641603,-151.369988,0.0001999,2]
[328758850,1717770641613,-213.31340462,0.0001999,2]
[328758851,1717770641624,-1986.26078966,0.0001999,2]
[328758852,1717770641634,-4127.90284633,0.0001999,2]
[328758853,1717770641644,-151.369988,0.00019991,2]
[328758854,1717770641654,-23262.43499498,0.00019991,7]
[328758855,1717770641667,-5409.4166524,0.00019991,7]
[328758856,1717770641679,-1790.00368819,0.00019991,7]
[328758857,1717770641691,-2555.5858141,0.00019991,7]
[328758858,1717770641703,-1790.86688441,0.00019991,7]
[328758859,1717770641713,-2905.26170772,0.00019991,2]
[328759036,1717770897931,10000.0,0.00023,30]
[328759041,1717771580314,466.74190123,9.999e-05,2]
[328759042,1717771658259,3000.0,0.000141,2]
[328759086,1717771832856,-1910.49735366,0.00018736,2]
[328759087,1717771832866,-10905.7018361,0.00018743,2]
[328759088,1717771832876,-167.906139,0.00019178,2]
[328759089,1717771832886,-1599.84744416,0.00019879,2]
[328759090,1717771832895,-475.16,0.00019879,3]
[328759091,1717771832905,-22568.61863926,0.00019879,2]